bitfinex-derivatives/quotes_SOLF0:USTF0_20250524
["timestamp","ask_amount","ask_price","bid_price","bid_amount"]
[1748050659675,0.04276595,174.26,174.23,0.04054267]
[1748050660271,0.04276595,174.26,174.24,5.7378]
[1748050662478,0.04276595,174.26,174.25,5.7377]
[1748050666086,0.04276595,174.26,174.24,5.738]
[1748050668786,0.04276595,174.26,174.23,0.04054267]
[1748050668787,5.78026595,174.26,174.23,0.04054267]
[1748050669087,0.04276595,174.26,174.23,0.04054267]
[1748050670092,0.04276595,174.26,174.24,5.738]
[1748050671482,0.04276595,174.26,174.25,5.7377]
[1748050671992,0.04276595,174.26,174.24,5.738]
[1748050673593,0.04276595,174.26,174.25,5.7377]
[1748050680693,6.595e-05,174.26,174.25,5.7377]
[1748050681096,6.595e-05,174.26,174.25,7.73400167]
[1748050681289,495.86,174.38,174.25,7.73400167]
[1748050681290,117.18,174.36,174.32,5.7351]
[1748050681498,117.18,174.36,174.26,1.99630167]
[1748050681795,119.2297,174.39,174.27,1.99630167]
[1748050682002,119.2297,174.39,174.25,121.84874162]
[1748050682003,117.18,174.39,174.28,8.68444329]
[1748050682301,3.851e-05,174.35,174.32,0.04035037]
[1748050682502,3.851e-05,174.35,174.34,5.7347]
[1748050682801,3.851e-05,174.35,174.34,7.73100167]
[1748050682998,520.61222518,174.54,174.34,12.40504329]
[1748050683197,24.83222518,174.54,174.43,4.66874162]
[1748050683387,24.83222518,174.54,174.46,4.66874162]
[1748050683593,14.9608037,174.49,174.48,5.7301]
[1748050683899,97.22675068,174.55,174.47,0.04392653]
[1748050683900,0.03789862,174.5,174.47,0.04392653]
[1748050684197,0.03789862,174.5,174.47,117.22392653]
[1748050686094,0.03789862,174.5,174.47,122.95412653]
[1748050687005,0.03789862,174.5,174.47,117.22392653]
[1748050688509,0.03789862,174.5,174.49,5.7298]
[1748050688700,117.12,174.59,174.47,117.22392653]
[1748050688897,117.12,174.59,174.47,117.18]
[1748050689100,5.7273,174.57,174.51,5.7291]
[1748050689299,5.7273,174.57,174.52,117.08]
[1748050689608,0.03925068,174.56,174.53,0.04015003]
[1748050691607,0.03925068,174.56,174.55,5.7279]
[1748050693808,3.8412,174.65,174.53,0.04015003]
[1748050694112,3.8412,174.65,174.54,6.8953402]
[1748050694812,0.03831674,174.61,174.58,0.03710407]
[1748050695015,0.03831674,174.61,174.59,117.02]
[1748050695508,117.06,174.68,174.59,117.02]
[1748050695816,3.8419,174.7,174.59,117.02]
[1748050696511,5.7233,174.69,174.63,5.725]
[1748050696810,0.03864413,174.66,174.63,5.76613474]
[1748050697005,0.03864413,174.66,174.63,0.04113474]
[1748050697316,0.03864413,174.66,174.54,612.18]
[1748050697515,5.7263,174.6,174.55,5.7276]
[1748050697704,116.98,174.63,174.55,5.7276]
[1748050697901,116.98,174.64,174.54,117.02]
[1748050698102,116.98,174.65,174.57,0.03714936]
[1748050698407,0.03804591,174.63,174.4,10.54520897]
[1748050698613,2.0339,174.64,174.46,617.27260448]
[1748050699207,5.7271,174.58,174.53,5.7285]
[1748050699423,116.98,174.59,174.51,116.98]
[1748050699611,0.03763078,174.57,174.51,116.98]
[1748050699910,0.03763078,174.57,174.53,0.04169028]
[1748050702711,0.03763078,174.57,174.54,5.7279]
[1748050702917,0.03763078,174.57,174.53,0.04169028]
[1748050703416,0.03763078,174.57,174.56,5.7275]
[1748050703613,0.03763078,174.57,174.53,0.04169028]
[1748050704414,0.03763078,174.57,174.55,5.7276]
[1748050704610,0.03763078,174.57,174.53,0.04169028]
[1748050705109,0.03763078,174.57,174.54,5.7281]
[1748050705409,0.03763078,174.57,174.53,0.04169028]
[1748050706615,0.03763078,174.57,174.55,5.7278]
[1748050706822,0.03763078,174.57,174.53,0.04169028]
[1748050707014,0.03763078,174.57,174.46,612.66]
[1748050707215,117.64,174.58,174.46,117.64]
[1748050707517,117.64,174.58,174.43,117.64]
[1748050707718,6.8953402,174.55,174.43,123.3715]
[1748050707921,0.03627401,174.51,174.47,0.03971749]
[1748050708118,117.64,174.5,174.47,0.03971749]
[1748050708620,117.64,174.5,174.4,117.64]
[1748050708818,117.64,174.5,174.39,5.7328]
[1748050709016,117.64,174.5,174.36,117.64]
[1748050709222,5.7299,174.49,174.45,5.731]
[1748050709519,117.64,174.5,174.4,117.64]
[1748050709720,0.04066091,174.47,174.43,0.04188954]
[1748050709922,0.04066091,174.47,174.44,5.7314]
[1748050710122,0.04066091,174.47,174.43,0.04188954]
[1748050710516,0.04066091,174.47,174.46,5.7308]
[1748050710817,0.04066091,174.47,174.43,0.04188954]
[1748050712228,0.04066091,174.47,174.46,5.7308]
[1748050712422,0.04066091,174.47,174.43,0.04188954]
[1748050713018,0.04066091,174.47,174.44,5.7314]
[1748050714628,0.04066091,174.47,174.43,5.77358954]
[1748050715123,0.04066091,174.47,174.44,5.7314]
[1748050715530,0.04066091,174.47,174.43,0.04188954]
[1748050715721,0.04066091,174.47,174.46,5.7308]
[1748050719837,0.04066091,174.47,174.44,123.4112]
[1748050720034,0.04066091,174.47,174.44,117.68]
[1748050720644,0.04066091,174.47,174.46,5.7308]
[1748050722839,0.04066091,174.47,174.43,0.04188954]
[1748050723138,117.74066091,174.47,174.37,117.7]
[1748050723334,5.7314,174.45,174.37,117.7]
[1748050723542,4.0639,174.46,174.37,117.7]
[1748050723842,9.7948,174.46,174.38,5.31279483]
[1748050724444,0.03901495,174.44,174.41,5.7324]
[1748050725235,5.7322,174.42,174.4,0.04103966]
[1748050725435,0.03901495,174.44,174.4,0.04103966]
[1748050726146,1.495e-05,174.44,174.43,5.7318]
[1748050728442,1.495e-05,174.44,174.42,5.732]
[1748050728640,1.495e-05,174.44,174.4,0.04103966]
[1748050729738,1.495e-05,174.44,174.43,5.7318]
[1748050731545,1.495e-05,174.44,174.43,11.0463226]
[1748050732146,1.495e-05,174.44,174.43,5.3145226]
[1748050733045,1.495e-05,174.44,174.42,5.732]
[1748050733245,1.495e-05,174.44,174.43,5.7318]
[1748050733947,1.495e-05,174.44,174.42,5.7321]
[1748050734148,1.495e-05,174.44,174.4,0.04103966]
[1748050734539,1.495e-05,174.44,174.43,5.7318]
[1748050736344,1.495e-05,174.44,174.43,123.6918]
[1748050736543,117.96,174.55,174.43,123.7]
[1748050736848,2.0393,174.58,174.44,8.8614459]
[1748050736849,119.9993,174.58,174.44,8.8614459]
[1748050737439,0.04034299,174.53,174.49,0.03891809]
[1748050737643,0.04034299,174.53,174.52,5.7288]
[1748050739854,4.299e-05,174.53,174.52,5.7288]
[1748050740352,117.94,174.61,174.59,5.7264]
[1748050740541,3.8424,174.62,174.59,5.7264]
[1748050740746,3.8424,174.62,174.55,117.94]
[1748050740948,3.8424,174.62,174.54,117.94]
[1748050741147,1.9463,174.62,174.52,117.94]
[1748050741349,0.04039725,174.59,174.55,5.76424457]
[1748050742052,0.04039725,174.59,174.55,0.03664457]
[1748050742246,0.04039725,174.59,174.49,117.94]
[1748050742440,117.94,174.6,174.49,117.94]
[1748050743052,5.727,174.58,174.53,5.7283]
[1748050743353,0.03777525,174.57,174.54,0.03899591]
[1748050743550,5.7278,174.55,174.54,0.03899591]
[1748050744048,0.03777525,174.57,174.54,0.03899591]
[1748050744251,0.03777525,174.57,174.54,5.76689591]
[1748050744557,0.03777525,174.57,174.54,0.03899591]
[1748050745152,5.76507525,174.57,174.54,0.03899591]
[1748050745543,0.03777525,174.57,174.48,64.0]
[1748050745747,0.03777525,174.57,174.47,117.9]
[1748050745943,117.94,174.6,174.47,117.9]
[1748050746354,117.94,174.6,174.51,5.7291]
[1748050746558,0.04230829,174.57,174.54,0.0385698]
[1748050746853,5.76960829,174.57,174.54,0.0385698]
[1748050747053,0.04230829,174.57,174.54,0.0385698]
[1748050747955,5.7278,174.55,174.54,0.0385698]
[1748050748455,5.7276,174.56,174.54,0.0385698]
[1748050748756,0.04230829,174.57,174.54,0.0385698]
[1748050748957,5.76970829,174.57,174.54,0.0385698]
[1748050749254,0.04230829,174.57,174.46,117.9]
[1748050749446,1.9684,174.58,174.47,5.7305]
[1748050749860,1.9684,174.58,174.46,117.9]
[1748050750157,0.04402523,174.54,174.5,0.0420391]
[1748050750457,5.7286,174.53,174.5,0.0420391]
[1748050750860,117.94402523,174.54,174.5,0.0420391]
[1748050751057,5.7291,174.52,174.5,0.0420391]
[1748050752159,7.7684,174.53,174.5,0.0420391]
[1748050753056,5.7289,174.52,174.5,0.0420391]
[1748050753356,2.0398,174.53,174.43,117.9]
[1748050753559,2.0398,174.53,174.44,1.98283939]
[1748050753947,117.9,174.55,174.45,1.98255003]
[1748050754153,0.04332768,174.52,174.48,0.0417417]
[1748050754349,0.04332768,174.52,174.48,117.9417417]
[1748050754550,0.04332768,174.52,174.51,5.7292]
[1748050755862,2.768e-05,174.52,174.51,5.7292]
[1748050758857,2.768e-05,174.52,174.49,1.97960405]
[1748050759057,2.768e-05,174.52,174.48,0.0417417]
[1748050759964,2.768e-05,174.52,174.49,5.7298]
[1748050760359,2.768e-05,174.52,174.48,0.0417417]
[1748050762166,2.768e-05,174.52,174.49,5.7295]
[1748050762761,2.768e-05,174.52,174.48,0.0417417]
[1748050762762,2.768e-05,174.52,174.51,5.7292]
[1748050763258,2.768e-05,174.52,174.48,0.0417417]
[1748050763769,2.768e-05,174.52,174.49,5.7296]
[1748050765065,5.72892768,174.52,174.49,5.7296]
[1748050765565,2.768e-05,174.52,174.5,5.7294]
[1748050766066,2.768e-05,174.52,174.51,5.7292]
[1748050766261,2.768e-05,174.52,174.48,0.0417417]
[1748050767067,2.768e-05,174.52,174.5,5.7293]
[1748050768363,5.72882768,174.52,174.49,5.7297]
[1748050768667,2.768e-05,174.52,174.48,0.0417417]
[1748050769661,2.768e-05,174.52,174.48,5.7717417]
[1748050769662,5.7292,174.51,174.48,5.7717417]
[1748050770864,2.768e-05,174.52,174.48,0.0417417]
[1748050771465,2.768e-05,174.52,174.51,5.7292]
[1748050771973,2.768e-05,174.52,174.51,124.8492]
[1748050774769,1.8671,174.59,174.51,119.12]
[1748050774975,119.1,174.63,174.51,119.12]
[1748050775165,119.1,174.62,174.52,1.98148696]
[1748050775475,119.1,174.62,174.47,119.1]
[1748050775674,119.1,174.62,174.48,1.98184057]
[1748050775972,0.04005409,174.57,174.53,0.03640588]
[1748050776173,119.14005409,174.57,174.53,0.03640588]
[1748050776769,1.9404,174.56,174.53,0.03640588]
[1748050776977,3.929,174.56,174.53,0.03640588]
[1748050777175,5.8136,174.56,174.53,0.03640588]
[1748050777669,5.8136,174.56,174.49,1.98320824]
[1748050777867,5.8136,174.56,174.48,5.34567083]
[1748050778479,5.7285,174.53,174.5,5.7293]
[1748050778666,119.1,174.53,174.5,5.77154005]
[1748050778974,5.7294,174.51,174.45,5.34567083]
[1748050779173,119.14333358,174.53,174.45,5.34567083]
[1748050779477,119.14333358,174.53,174.47,5.7302]
[1748050779678,119.14333358,174.53,174.45,5.34567083]
[1748050779978,119.14333358,174.53,174.47,0.04209623]
[1748050780474,119.14333358,174.53,174.45,5.34567083]
[1748050780779,5.7308,174.47,174.45,5.34567083]
[1748050780971,119.1,174.47,174.45,5.34567083]
[1748050781173,119.1,174.47,174.42,1.9878833]
[1748050781373,119.1,174.47,174.41,5.27854515]
[1748050781678,0.0408656,174.46,174.45,5.731]
[1748050782072,0.0408656,174.46,174.45,7.71905119]
[1748050784877,0.0408656,174.46,174.44,5.7314]
[1748050785077,0.0408656,174.46,174.42,5.38710262]
[1748050785277,0.0408656,174.46,174.43,1.98940499]
[1748050785581,0.0408656,174.46,174.42,5.38710262]
[1748050785582,0.0408656,174.46,174.45,5.7311]
[1748050789498,0.0408656,174.46,174.45,7.72095482]
[1748050790393,6.56e-05,174.46,174.45,7.72095482]
[1748050791793,6.56e-05,174.46,174.45,126.86095482]
[1748050792994,6.56e-05,174.46,174.45,132.21363917]
[1748050795305,6.56e-05,174.46,174.45,13.07363917]
[1748050795490,6.56e-05,174.46,174.45,11.08378435]
[1748050795796,6.56e-05,174.46,174.45,13.07651675]
[1748050796196,6.56e-05,174.46,174.45,13.07652808]
[1748050796705,6.56e-05,174.46,174.45,5.7311]
[1748050798696,6.56e-05,174.46,174.45,7.72385049]
[1748050801202,6.56e-05,174.46,174.45,7.72346494]
[1748050802604,6.56e-05,174.46,174.45,71.72346494]
[1748050803400,1.9767,174.55,174.53,5.7283]
[1748050803598,1.9767,174.55,174.48,118.52]
[1748050803801,1.9767,174.55,174.49,1.99236494]
[1748050803999,1.9767,174.55,174.48,118.52]
[1748050804000,1.9767,174.55,174.53,5.7283]
[1748050804200,1.9767,174.55,174.48,118.52]
[1748050804397,0.04197389,174.53,174.5,0.04063236]
[1748050804900,0.04197389,174.53,174.51,1.99293325]
[1748050805099,3.8991,174.68,174.52,127.40614139]
[1748050805303,1.9626,174.65,174.53,7.35497606]
[1748050805605,120.4826,174.65,174.54,120.51080119]
[1748050805805,120.4826,174.65,174.54,118.52]
[1748050806003,5.76717684,174.61,174.58,0.03631642]
[1748050806203,1.8816,174.6,174.53,5.36417487]
[1748050806408,1.8816,174.6,174.53,123.86417487]
[1748050806707,3.8557,174.6,174.53,123.86417487]
[1748050807204,3.8557,174.6,174.55,0.0426453]
[1748050807603,5.7266,174.59,174.55,5.7703453]
[1748050808709,122.3557,174.6,174.49,118.5]
[1748050809002,5.7282,174.54,174.51,5.7291]
[1748050809704,0.03873693,174.54,174.52,5.7288]
[1748050810010,0.03873693,174.54,174.51,0.03981734]
[1748050811608,0.03873693,174.54,174.51,5.76891734]
[1748050811807,0.03873693,174.54,174.51,0.03981734]
[1748050812715,5.76723693,174.54,174.51,0.03981734]
[1748050813111,0.03873693,174.54,174.51,5.76891734]
[1748050814402,3.693e-05,174.54,174.53,5.7285]
[1748050814607,3.693e-05,174.54,174.53,7.71452346]
[1748050815008,3.693e-05,174.54,174.53,5.7285]
[1748050815614,3.693e-05,174.54,174.53,7.71435078]
[1748050819023,3.824,174.64,174.53,1.98585078]
[1748050819226,3.824,174.64,174.54,120.46585078]
[1748050819418,3.824,174.64,174.54,118.48]
[1748050819614,3.824,174.64,174.55,1.98304598]
[1748050819815,3.824,174.64,174.63,5.7252]
[1748050820522,1.8747,174.64,174.63,5.7252]
[1748050820817,0.03853962,174.65,174.64,5.7249]
[1748050823625,0.03853962,174.65,174.63,5.7252]
[1748050824428,0.03853962,174.65,174.62,0.03936292]
[1748050824621,0.03853962,174.65,174.61,5.7258]
[1748050824927,5.76333962,174.65,174.61,5.7258]
[1748050825327,5.76333962,174.65,174.62,5.7255]
[1748050825527,5.76333962,174.65,174.62,5.76956579]
[1748050827429,5.76333962,174.65,174.62,0.04406579]
[1748050828132,0.03853962,174.65,174.62,5.76956579]
[1748050828526,0.03853962,174.65,174.62,0.04406579]
[1748050828731,0.03853962,174.65,174.64,5.7249]
[1748050832138,0.03853962,174.65,174.63,5.7251]
[1748050834129,0.03853962,174.65,174.64,5.7249]
[1748050835035,0.03853962,174.65,174.63,5.7251]
[1748050835736,0.03853962,174.65,174.62,5.76956579]
[1748050836337,0.03853962,174.65,174.63,5.7252]
[1748050836531,0.03853962,174.65,174.62,0.04406579]
[1748050837535,0.03853962,174.65,174.64,5.7249]
[1748050842644,0.03853962,174.65,174.63,5.7251]
[1748050842835,0.03853962,174.65,174.62,120.34406579]
[1748050843341,0.03853962,174.65,174.64,5.7249]
[1748050843541,0.03853962,174.65,174.62,120.34406579]
[1748050844643,0.03853962,174.65,174.63,5.7249]
[1748050845439,0.03853962,174.65,174.62,120.34406579]
[1748050845744,0.03853962,174.65,174.62,0.04406579]
[1748050846042,0.03853962,174.65,174.63,5.7252]
[1748050846648,0.03853962,174.65,174.62,0.04406579]
[1748050847745,5.7249,174.64,174.62,0.04406579]
[1748050848449,5.76323962,174.65,174.62,5.76956579]
[1748050848648,0.03853962,174.65,174.62,0.04406579]
[1748050849049,5.7252,174.64,174.62,0.04406579]
[1748050849249,0.03853962,174.65,174.62,0.04406579]
[1748050849747,0.03853962,174.65,174.64,5.7249]
[1748050850839,0.03853962,174.65,174.62,0.04406579]
[1748050851649,0.03853962,174.65,174.64,5.7249]
[1748050852645,0.03853962,174.65,174.62,0.04406579]
[1748050853746,5.7249,174.64,174.62,0.04406579]
[1748050853941,120.3,174.64,174.53,500.25854515]
[1748050854143,120.3,174.64,174.53,5.27854515]
[1748050854144,6.51758326,174.63,174.53,5.27854515]
[1748050854337,5.7272,174.58,174.54,5.7281]
[1748050854550,120.3,174.6,174.54,5.7281]
[1748050854943,0.04280457,174.59,174.55,0.03890372]
[1748050856549,0.04280457,174.59,174.48,1.98390316]
[1748050856748,124.94628326,174.6,174.47,120.3]
[1748050856951,124.94628326,174.6,174.48,1.98411267]
[1748050857150,5.7288,174.53,174.48,7.7146119]
[1748050857350,5.7288,174.53,174.48,5.7299]
[1748050857553,5.76991747,174.52,174.49,0.04245516]
[1748050858045,0.04081747,174.52,174.49,5.77215516]
[1748050858450,0.04081747,174.52,174.49,0.04245516]
[1748050859649,0.04081747,174.52,174.49,5.77225516]
[1748050859851,0.04081747,174.52,174.49,0.04245516]
[1748050863958,1.747e-05,174.52,174.51,5.7292]
[1748050866556,119.3,174.61,174.6,5.7262]
[1748050866756,119.3,174.61,174.51,1.97671238]
[1748050867063,3.7841,174.62,174.6,5.726]
[1748050867557,3.7841,174.62,174.54,119.3]
[1748050867558,3.7841,174.62,174.59,0.0421024]
[1748050867759,3.7841,174.62,174.59,5.7684024]
[1748050867960,3.7841,174.62,174.59,0.0421024]
[1748050870462,3.7841,174.62,174.59,5.7685024]
[1748050870662,0.03718278,174.63,174.59,0.0421024]
[1748050871356,0.03718278,174.63,174.62,5.7256]
[1748050873265,0.03718278,174.63,174.61,5.7258]
[1748050873463,0.03718278,174.63,174.59,0.0421024]
[1748050873862,0.03718278,174.63,174.6,5.7262]
[1748050874066,0.03718278,174.63,174.59,0.0421024]
[1748050874565,0.03718278,174.63,174.6,5.7261]
[1748050874761,0.03718278,174.63,174.59,0.0421024]
[1748050875064,5.76238278,174.63,174.6,5.7262]
[1748050875565,5.76238278,174.63,174.59,0.0421024]
[1748050876063,125.04238278,174.63,174.59,0.0421024]
[1748050876765,125.04238278,174.63,174.59,5.7686024]
[1748050877063,125.04238278,174.63,174.59,0.0421024]
[1748050877865,125.04238278,174.63,174.59,5.7684024]
[1748050878054,5.7256,174.62,174.59,5.7684024]
[1748050878261,5.7256,174.62,174.59,0.0421024]
[1748050879368,119.31718278,174.63,174.59,0.0421024]
[1748050879760,0.03718278,174.63,174.59,0.0421024]
[1748050880471,5.7256,174.62,174.59,0.0421024]
[1748050882169,0.03718278,174.63,174.59,0.0421024]
[1748050882870,0.03718278,174.63,174.62,5.7256]
[1748050891580,0.03718278,174.63,174.59,0.0421024]
[1748050892576,5.727,174.58,174.55,5.7278]
[1748050892877,118.06,174.61,174.52,118.06]
[1748050893273,5.7268,174.59,174.52,118.06]
[1748050893670,5.7268,174.59,174.54,0.03719241]
[1748050893671,0.03702786,174.57,174.54,0.03719241]
[1748050895682,5.76442786,174.57,174.54,5.76519241]
[1748050896777,0.03702786,174.57,174.55,5.7277]
[1748050896974,0.03702786,174.57,174.54,0.03719241]
[1748050897675,0.03702786,174.57,174.56,5.7275]
[1748050903381,2.786e-05,174.57,174.56,5.7275]
[1748050903586,2.786e-05,174.57,174.56,125.78490893]
[1748050903776,2.786e-05,174.57,174.56,131.50490893]
[1748050904275,2.786e-05,174.57,174.56,195.50490893]
[1748050904482,2.786e-05,174.57,174.56,189.78490893]
[1748050905480,2.786e-05,174.57,174.56,189.78353779]
[1748050906477,2.786e-05,174.57,174.56,195.07180054]
[1748050908985,2.786e-05,174.57,174.56,195.05180054]
[1748050909171,1.9245,174.66,174.65,5.7246]
[1748050910783,0.03647509,174.67,174.65,5.7246]
[1748050911685,0.03647509,174.67,174.64,5.76532146]
[1748050911984,5.76047509,174.67,174.64,5.76532146]
[1748050913286,0.03647509,174.67,174.65,5.7246]
[1748050913489,0.03647509,174.67,174.64,0.04052146]
[1748050913689,0.03647509,174.67,174.66,5.7242]
[1748050915785,0.03647509,174.67,174.55,4.65282807]
[1748050916084,5.7258,174.62,174.56,1.98011474]
[1748050916281,2.017,174.61,174.58,5.7268]
[1748050916484,2.017,174.61,174.54,123.33854515]
[1748050916792,2.017,174.61,174.55,1.98131827]
[1748050916981,0.04276959,174.59,174.56,2.02210798]
[1748050917181,0.04276959,174.59,174.56,0.04078971]
[1748050917684,0.04276959,174.59,174.58,5.7269]
[1748050918083,0.04276959,174.59,174.57,5.7271]
[1748050919993,0.04276959,174.59,174.58,5.7269]
[1748050920793,0.04276959,174.59,174.57,5.7271]
[1748050921094,0.04276959,174.59,174.56,0.04078971]
[1748050921390,0.04276959,174.59,174.57,5.7269]
[1748050922193,0.04276959,174.59,174.58,5.7269]
[1748050923290,0.04276959,174.59,174.56,0.04078971]
[1748050923893,5.76956959,174.59,174.56,0.04078971]
[1748050924096,0.04276959,174.59,174.56,0.04078971]
[1748050925197,0.04276959,174.59,174.54,5.7281]
[1748050925198,117.46,174.58,174.52,1.97541156]
[1748050925497,5.7274,174.57,174.49,122.73854515]
[1748050925695,117.46,174.58,174.5,1.97549588]
[1748050925895,123.187,174.58,174.54,5.7279]
[1748050926098,123.22456227,174.58,174.54,5.7279]
[1748050926494,117.49756227,174.58,174.53,5.7284]
[1748050927196,117.49756227,174.58,174.5,5.2922579]
[1748050927900,117.49756227,174.58,174.51,5.7291]
[1748050928101,0.03822616,174.56,174.51,5.7291]
[1748050928400,5.7279,174.55,174.48,1.97648065]
[1748050928594,7.6587,174.55,174.46,117.46]
[1748050928901,0.03983018,174.52,174.47,1.97646228]
[1748050929098,0.03983018,174.52,174.51,5.7292]
[1748050929298,119.497,174.61,174.51,1.97593508]
[1748050929595,119.497,174.61,174.52,1.97593508]
[1748050929789,119.497,174.61,174.53,1.97593508]
[1748050929991,119.497,174.61,174.51,5.28944823]
[1748050930201,119.497,174.61,174.52,1.97496546]
[1748050930405,0.03712949,174.58,174.55,0.0412142]
[1748050931103,0.03712949,174.58,174.56,5.7273]
[1748050932003,0.03712949,174.58,174.55,0.0412142]
[1748050932404,5.7274,174.57,174.55,0.0412142]
[1748050933210,5.7275,174.56,174.55,0.0412142]
[1748050933504,117.48,174.57,174.51,5.7289]
[1748050933705,1.994,174.55,174.48,1.97542892]
[1748050933900,1.994,174.55,174.49,1.97488147]
[1748050934104,1.994,174.55,174.5,1.97488147]
[1748050934307,0.0373164,174.54,174.47,122.75854515]
[1748050934508,0.0373164,174.54,174.48,7.26384299]
[1748050934702,0.0373164,174.54,174.53,5.7285]
[1748050935093,0.0373164,174.54,174.49,1.97403183]
[1748050935297,0.0373164,174.54,174.49,1.97393789]
[1748050935509,0.0373164,174.54,174.47,117.48]
[1748050935701,0.0373164,174.54,174.48,1.97382403]
[1748050936006,0.0373164,174.54,174.47,117.48]
[1748050936200,5.7655164,174.54,174.48,1.97384227]
[1748050936406,2.0300164,174.54,174.47,117.48]
[1748050936607,5.7288,174.53,174.47,117.48]
[1748050936805,5.7288,174.53,174.44,676.32]
[1748050937004,0.03848555,174.5,174.45,1.97450604]
[1748050937206,0.03848555,174.5,174.49,5.7296]
[1748050937999,0.03848555,174.5,174.4,5.27854515]
[1748050938200,0.03848555,174.5,174.41,1.97441449]
[1748050938400,4.69131362,174.5,174.41,1.97403709]
[1748050938602,5.7302,174.48,174.44,5.7312]
[1748050938811,3.9543,174.47,174.42,1.97389087]
[1748050939010,0.03942695,174.46,174.41,1.97389087]
[1748050939210,0.03942695,174.46,174.4,7.25153686]
[1748050939620,0.03942695,174.46,174.45,5.7311]
[1748050947820,0.03942695,174.46,174.39,117.5]
[1748050949118,0.03942695,174.46,174.44,5.7312]
[1748050949615,0.03942695,174.46,174.39,117.5]
[1748050950217,0.03942695,174.46,174.44,5.7312]
[1748050950716,0.03942695,174.46,174.39,117.5]
[1748050952218,0.03942695,174.46,174.44,5.7314]
[1748050954815,0.03942695,174.46,174.45,5.7311]
[1748050955922,5.7313,174.45,174.41,5.7321]
[1748050956116,117.54,174.44,174.34,117.54]
[1748050956319,0.03633328,174.41,174.34,117.54]
[1748050956517,0.03633328,174.41,174.4,5.7328]
[1748050957228,3.328e-05,174.41,174.4,5.7328]
[1748050964133,3.328e-05,174.41,174.4,69.7328]
[1748050964726,3.328e-05,174.41,174.4,74.38562807]
[1748050966529,3.328e-05,174.41,174.4,76.34916601]
[1748050971931,3.328e-05,174.41,174.4,76.35153496]
[1748050972332,3.328e-05,174.41,174.4,76.35174481]
[1748050973139,3.328e-05,174.41,174.4,12.35174481]
[1748050973738,3.328e-05,174.41,174.4,12.35129001]
[1748050974438,3.328e-05,174.41,174.4,12.35010847]
[1748050974937,3.328e-05,174.41,174.4,10.38562807]
[1748050975239,3.328e-05,174.41,174.4,12.34927393]
[1748050975539,3.328e-05,174.41,174.4,17.6117871]
[1748050975837,3.328e-05,174.41,174.4,17.61182835]
[1748050976136,3.328e-05,174.41,174.4,15.64814124]
[1748050976333,117.56,174.5,174.49,5.7298]
[1748050976540,117.54,174.53,174.44,117.54]
[1748050976933,123.2685,174.53,174.48,5.7298]
[1748050977239,123.2685,174.53,174.44,117.54]
[1748050977434,0.04249542,174.5,174.47,0.03896092]
[1748050977937,0.04249542,174.5,174.48,5.7301]
[1748050978440,0.04249542,174.5,174.49,5.7298]
[1748050978644,0.04249542,174.5,174.47,0.03896092]
[1748050979036,0.04249542,174.5,174.48,5.7301]
[1748050979736,0.04249542,174.5,174.47,0.03896092]
[1748050979937,5.77219542,174.5,174.47,0.03896092]
[1748050980239,0.04249542,174.5,174.47,0.03896092]
[1748050981147,0.04249542,174.5,174.49,5.7298]
[1748050982046,0.04249542,174.5,174.49,7.697952]
[1748050982533,0.04249542,174.5,174.49,5.7298]
[1748050982733,0.04249542,174.5,174.49,7.69728237]
[1748050982935,0.04249542,174.5,174.47,0.03896092]
[1748050983538,0.04249542,174.5,174.49,5.7298]
[1748050983942,0.04249542,174.5,174.49,7.69677706]
[1748050985054,0.04249542,174.5,174.49,5.7298]
[1748050985351,9.542e-05,174.5,174.49,7.69388834]
[1748050985553,1.9148,174.6,174.56,5.7273]
[1748050985750,1.9148,174.6,174.5,1.96408834]
[1748050986055,1.9148,174.6,174.51,1.96408834]
[1748050986246,1.9148,174.6,174.56,5.7274]
[1748050986648,1.9554499,174.6,174.56,5.768141]
[1748050986844,7.6816499,174.6,174.56,5.768141]
[1748050987548,1.9554499,174.6,174.56,0.040741]
[1748050987857,1.9554499,174.6,174.5,5.27448842]
[1748050987858,4.65282807,174.59,174.5,5.27448842]
[1748050988251,1.9148,174.6,174.5,5.27448842]
[1748050988754,0.0374038,174.57,174.53,5.76598977]
[1748050989241,0.0374038,174.57,174.54,5.7281]
[1748050989641,0.0374038,174.57,174.53,0.03778977]
[1748050990247,0.0374038,174.57,174.56,5.7275]
[1748050990753,0.0374038,174.57,174.55,5.7276]
[1748050990948,0.0374038,174.57,174.53,0.03778977]